bitfinex/quotes_ETHUSD_20250123
["timestamp","ask_amount","ask_price","bid_price","bid_amount"]
[1737606894380,3.11499,3210.3,3209.9,0.83614923]
[1737606894779,3.11471,3210.6,3209.9,0.83614923]
[1737606894977,3.1149,3210.4,3210.0,0.39515892]
[1737606896368,3.11456,3210.8,3210.1,0.03114876]
[1737606896702,3.11458,3210.7,3210.1,0.03114876]
[1737606897089,3.11458,3210.7,3210.1,3.14628876]
[1737606897605,3.11458,3210.7,3210.2,3.11506]
[1737606897769,3.11458,3210.7,3210.2,3.56529071]
[1737606898203,3.11458,3210.7,3210.2,0.45023071]
[1737606898801,3.11446,3210.9,3210.4,0.805]
[1737606900730,3.74023765,3211.1,3210.4,0.805]
[1737606900999,3.1142,3211.1,3210.6,3.11467]
[1737606901191,3.1142,3211.1,3210.7,0.34572342]
[1737606901370,3.11457,3210.8,3210.4,0.805]
[1737606901565,3.11494,3210.4,3209.8,3.9204]
[1737606902103,3.11499,3210.3,3209.8,0.805]
[1737606902274,3.11499,3210.3,3209.8,1.42716]
[1737606903004,0.8306,3210.6,3209.8,1.42716]
[1737606903005,3.11518,3210.1,3209.8,0.805]
[1737606903300,0.8306,3210.6,3209.5,3.95186211]
[1737606903510,0.8306,3210.6,3209.5,3.92071]
[1737606903802,3.11522,3210.1,3209.5,3.92071]
[1737606904671,3.11511,3210.2,3209.6,3.11565]
[1737606904978,3.11511,3210.2,3209.7,0.03115213]
[1737606906698,3.11519,3210.1,3209.6,3.11565]
[1737606906900,3.11511,3210.2,3209.7,0.03115216]
[1737606907308,3.11516,3210.1,3209.7,0.03115216]
[1737606907728,3.11511,3210.2,3209.6,3.819297]
[1737606908833,3.11511,3210.2,3209.7,0.03115219]
[1737606910108,3.11511,3210.2,3209.6,3.819297]
[1737606910309,3.93391,3210.2,3209.5,0.805]
[1737606910510,3.11526,3210.0,3209.5,0.805]
[1737606910812,7.04906,3210.2,3209.5,3.92074]
[1737606911022,3.11519,3210.1,3209.5,3.92074]
[1737606911836,3.11518,3210.1,3209.5,3.92074]
[1737606912034,3.11511,3210.2,3209.6,3.819286]
[1737606912234,3.11511,3210.2,3209.7,0.7702]
[1737606913328,3.11511,3210.2,3209.7,0.80135226]
[1737606913505,6.23027,3210.2,3209.7,0.7702]
[1737606913701,3.93391,3210.2,3209.7,0.7702]
[1737606914000,3.11527,3210.0,3209.4,0.7702]
[1737606914332,3.11539,3209.9,3209.4,0.7702]
[1737606915006,3.11527,3210.0,3209.4,0.7702]
[1737606915239,3.11558,3209.7,3209.4,0.7702]
[1737606915847,0.8188,3209.6,3208.7,0.7702]
[1737606916003,3.11607,3209.2,3208.7,0.7702]
[1737606917321,3.11585,3209.4,3208.7,0.7702]
[1737606917529,3.11585,3209.4,3208.8,3.11635]
[1737606918247,3.42959116,3211.0,3209.2,0.7702]
[1737606918248,0.8188,3209.9,3209.2,0.7702]
[1737606918535,3.11555,3209.8,3209.2,0.80135692]
[1737606918758,3.11555,3209.8,3209.2,1.19310261]
[1737606919037,3.11555,3209.8,3209.2,4.30913261]
[1737606919204,3.11555,3209.8,3209.2,4.30911261]
[1737606919405,3.93388,3210.2,3209.3,3.11585]
[1737606919639,3.11528,3210.0,3209.5,0.7899]
[1737606919806,3.11534,3210.0,3209.5,0.7899]
[1737606920706,3.11497,3210.3,3209.5,0.7899]
[1737606921027,3.11563,3209.7,3209.1,0.7899]
[1737606921236,3.11562,3209.7,3209.1,1.180509]
[1737606921428,3.10967323,3209.7,3209.1,1.180509]
[1737606921627,3.11586,3209.4,3209.1,0.7899]
[1737606921843,3.11596,3209.3,3209.1,0.7899]
[1737606922128,0.7968,3209.7,3208.7,0.7899]
[1737606922329,3.116,3209.3,3208.7,0.7899]
[1737606922758,3.116,3209.3,3208.7,3.90641]
[1737606923069,3.116,3209.3,3208.7,4.638811]
[1737606923944,3.11576,3209.5,3208.8,3.11641]
[1737606924143,3.11576,3209.5,3208.9,3.11623]
[1737606924444,3.11546,3209.8,3209.1,0.7899]
[1737606924851,3.11546,3209.8,3209.2,3.11599]
[1737606925236,3.11546,3209.8,3209.2,3.8182]
[1737606925566,3.11537,3209.9,3209.2,0.70221]
[1737606925759,3.11561,3209.7,3209.2,0.70221]
[1737606927775,3.11537,3209.9,3209.3,3.11593]
[1737606929052,3.1152,3210.1,3209.5,3.11574]
[1737606929233,3.1152,3210.1,3209.6,0.7364155]
[1737606929438,3.1152,3210.1,3209.6,0.70526165]
[1737606929671,3.11507,3210.2,3209.7,3.90538]
[1737606929873,3.73525223,3210.4,3209.7,3.93653182]
[1737606930083,3.73525223,3210.4,3209.8,3.1154]
[1737606930383,3.73525223,3210.4,3209.8,0.76228498]
[1737606930679,3.11504,3210.3,3209.8,0.76228498]
[1737606931103,3.11471,3210.6,3209.8,0.76228498]
[1737606931284,3.11471,3210.6,3209.7,0.7899]
[1737606931285,3.11454,3210.8,3210.1,3.1151]
[1737606931477,3.11454,3210.8,3210.2,3.93606742]
[1737606931667,3.11445,3210.9,3210.3,3.11496]
[1737606931912,3.11445,3210.9,3210.3,3.1149]
[1737606932086,3.11449,3210.8,3210.3,0.70510774]
[1737606932654,3.11445,3210.9,3210.3,0.70510774]
[1737606933002,3.11449,3210.8,3210.3,0.70510774]
[1737606933375,3.11445,3210.9,3210.3,0.70510774]
[1737606933376,3.11459,3210.7,3210.3,0.70510774]
[1737606933569,3.11459,3210.7,3210.2,0.7899]
[1737606933957,3.11488,3210.4,3210.2,0.7899]
[1737606934391,3.11492,3210.4,3209.9,0.7899]
[1737606935416,3.76352738,3211.0,3209.9,0.7899]
[1737606935555,3.11484,3210.5,3210.0,0.03115048]
[1737606935755,3.11476,3210.6,3210.0,0.03115048]
[1737606936060,3.11476,3210.6,3210.0,3.14639048]
[1737606936369,3.1148,3210.5,3210.1,0.8306]
[1737606939592,3.11488,3210.4,3210.1,0.8306]
[1737606940532,7.50401389,3211.0,3210.1,0.8306]
[1737606940533,3.11499,3210.3,3210.1,0.8306]
[1737606940724,3.11499,3210.3,3209.6,3.11558]
[1737606940725,3.11499,3210.3,3209.7,0.8306]
[1737606941026,3.11499,3210.3,3209.7,1.255218]
[1737606941229,3.11507,3210.2,3209.7,1.255218]
[1737606941837,3.11507,3210.2,3209.7,4.370748]
[1737606943827,3.11491,3210.4,3209.7,4.370748]
[1737606944133,3.11499,3210.3,3209.7,4.370748]
[1737606944501,3.11482,3210.5,3209.8,35.7786328]
[1737606944706,3.11482,3210.5,3209.9,3.97709061]
[1737606945316,3.11482,3210.5,3210.0,3.11524]
[1737606946034,3.11482,3210.5,3209.9,0.86175061]
[1737606946035,3.11498,3210.3,3209.9,0.86175061]
[1737606946337,3.91782,3210.5,3209.9,0.8306]
[1737606947545,3.11556,3209.7,3209.1,3.94666]
[1737606947925,3.11556,3209.7,3209.2,35.0]
[1737606948542,3.11547,3209.8,3209.2,38.11598]
[1737606948741,3.11547,3209.8,3209.3,0.03115503]
[1737606948935,3.11558,3209.7,3209.1,3.94666]
[1737606949245,3.11547,3209.8,3209.2,0.594666]
[1737606949550,3.11547,3209.8,3209.4,35.0]
[1737606955053,3.11556,3209.7,3209.4,35.0]
[1737606957560,3.11546,3209.8,3209.4,35.0]
[1737606957751,3.11557,3209.7,3209.4,35.0]
[1737606958967,3.11557,3209.7,3209.4,35.87288063]
[1737606959768,3.9183,3210.0,3209.4,35.87288063]
[1737606960092,3.11546,3209.8,3209.4,35.87288063]
[1737606962034,3.1153,3210.0,3209.5,3.97747516]
[1737606962447,0.803,3210.3,3209.5,0.8306]
[1737606962647,3.11543,3209.9,3209.5,1.425266]
[1737606962850,3.11543,3209.9,3209.5,1.4564199]
[1737606963774,3.11516,3210.1,3209.5,1.4564199]
[1737606964072,3.11526,3210.0,3209.5,1.4564199]
[1737606964467,6.23041,3210.1,3209.5,1.4564199]
[1737606964673,3.11516,3210.1,3209.6,0.87288063]
[1737606965242,3.11516,3210.1,3209.5,3.9774439]
[1737606965570,3.11516,3210.1,3209.7,35.0]
[1737606966071,0.6378379,3210.4,3209.7,35.0]
[1737606966276,3.11545,3209.8,3209.7,35.0]
[1737606967979,0.78,3210.1,3209.3,0.781]
[1737606968149,6.23145,3209.6,3209.3,0.781]
[1737606968563,3.11571,3209.6,3209.4,35.0]
[1737606969287,3.11556,3209.7,3209.4,35.0]
[1737606969446,3.11566,3209.6,3209.4,35.0]
[1737606971681,3.11563,3209.7,3209.4,35.0]
[1737606971845,3.11547,3209.8,3209.4,35.0]
[1737606972045,3.11567,3209.6,3209.4,35.0]
[1737606972856,3.11547,3209.8,3209.4,35.0]
[1737606973456,3.11557,3209.7,3209.4,35.0]
[1737606973657,3.11547,3209.8,3209.4,35.0]
[1737606973867,3.11529,3210.0,3209.4,35.0]
[1737606974058,3.11537,3209.9,3209.4,35.0]
[1737606974477,3.11529,3210.0,3209.4,35.0]
[1737606975180,3.11529,3210.0,3209.5,0.82875579]
[1737606975357,3.11511,3210.2,3209.5,3.94443579]
[1737606975556,3.11518,3210.1,3209.5,3.94443579]
[1737606975762,3.11518,3210.1,3209.6,35.0]
[1737606977384,3.11469,3210.6,3209.7,0.82875261]
[1737606977591,3.11444,3210.9,3210.3,3.11491]
[1737606977780,3.11444,3210.9,3210.4,0.7976]
[1737606978101,3.11444,3210.9,3210.5,35.0]
[1737606978673,3.11419,3211.1,3210.5,38.11475]
[1737606978878,3.11419,3211.1,3210.6,0.7976]
[1737606979080,0.60760455,3211.3,3210.7,0.7976]
[1737606979281,0.60760455,3211.3,3211.1,0.7976]
[1737606979459,0.60760455,3211.3,3211.2,35.0]
[1737606980084,3.11371,3211.6,3211.2,35.0]
[1737606980889,3.11352,3211.8,3211.2,35.0]
[1737606981089,3.11314,3212.2,3211.4,3.93801]
[1737606981257,3.11314,3212.2,3211.6,0.8242]
[1737606981652,3.11314,3212.2,3211.7,35.0]
[1737606981859,3.11294,3212.4,3211.8,0.03113336]
[1737606982055,3.11277,3212.6,3211.9,3.93761]
[1737606982281,3.11277,3212.6,3212.0,0.0311298]
[1737606982459,3.11277,3212.6,3212.0,0.42800378]
[1737606982665,3.11257,3212.8,3212.2,0.8242]
[1737606982870,3.11257,3212.8,3212.2,3.96845727]
[1737606983688,3.11257,3212.8,3212.3,35.0]
[1737606983895,0.63675462,3212.7,3212.3,35.0]
[1737606984089,3.11293,3212.4,3212.3,35.0]
[1737606984397,3.11307,3212.3,3211.8,1.1242]
[1737606984888,3.11335,3212.0,3211.8,1.1242]
[1737606985087,3.74946462,3212.7,3211.8,1.1242]
[1737606985280,3.11329,3212.1,3211.8,1.1242]
[1737606985864,3.11342,3211.9,3211.8,0.8242]
[1737606986057,3.11353,3211.8,3211.2,0.8242]
[1737606986509,3.11353,3211.8,3211.3,0.03113606]
[1737606987002,3.11335,3212.0,3211.3,0.03113606]
[1737606987158,3.11286,3212.5,3211.5,0.8242]
[1737606987364,3.11319,3212.2,3211.6,0.62494067]
[1737606987704,3.11324,3212.1,3211.7,35.0]
[1737606988256,3.11333,3212.0,3211.7,35.0]
[1737606988493,3.11319,3212.2,3211.7,35.0]
[1737606988691,3.11319,3212.2,3211.8,0.87373863]
[1737606989099,3.1133,3212.1,3211.5,0.8242]
[1737606989293,3.1134,3212.0,3211.6,35.0]
[1737606990470,1.39155462,3212.7,3211.6,35.0]
[1737606990675,3.11352,3211.8,3211.5,0.8242]
[1737606990905,3.11389,3211.5,3211.0,0.8043]
[1737606991080,3.11401,3211.3,3211.1,35.0]
[1737606991286,3.1141,3211.2,3211.1,35.0]
[1737606991489,3.11429,3211.0,3210.6,0.8043]
[1737606991804,3.11458,3210.7,3210.6,0.8043]
[1737606991963,3.11441,3210.9,3210.6,35.8043]
[1737606994118,3.11419,3211.1,3210.6,35.8043]
[1737606994331,3.11449,3210.8,3210.6,35.8043]
[1737606995119,3.11419,3211.1,3210.6,35.8043]
[1737606995541,3.11443,3210.9,3210.6,35.8043]
[1737606997138,3.11443,3210.9,3210.6,35.0]
[1737606997985,3.11419,3211.1,3210.6,35.0]
[1737606998187,3.11449,3210.8,3210.6,35.0]
[1737606998821,3.11458,3210.7,3210.6,35.0]
[1737606999390,3.11449,3210.8,3210.6,35.0]
[1737607000725,3.1143,3211.0,3210.6,35.0]
[1737607001021,3.11439,3210.9,3210.6,35.0]
[1737607002654,3.11439,3210.9,3210.3,3.11495]
[1737607003150,3.11439,3210.9,3210.7,35.0]
[1737607004722,6.07433738,3211.5,3210.7,35.0]
[1737607004723,1.43893427,3211.4,3210.7,35.0]
[1737607005039,3.11381,3211.5,3210.9,0.7553]
[1737607005208,3.11405,3211.3,3210.9,0.7553]
[1737607006022,3.11413,3211.2,3210.9,0.7553]
[1737607006611,3.11441,3210.9,3210.7,35.0]
[1737607006813,3.91577,3211.0,3210.7,35.0]
[1737607008034,3.11455,3210.8,3210.3,0.7553]
[1737607008535,3.11455,3210.8,3210.4,35.0]
[1737607008735,3.11475,3210.6,3210.4,35.0]
[1737607008925,6.22952,3210.6,3210.4,35.0]
[1737607009121,3.11477,3210.5,3210.4,35.0]
[1737607009307,3.11502,3210.3,3210.0,0.7553]
[1737607012137,3.11479,3210.5,3210.0,0.7553]
[1737607012344,3.11479,3210.5,3210.0,1.142364]
[1737607012545,3.11488,3210.4,3210.0,1.142364]
[1737607012759,3.11511,3210.2,3209.2,7.96052738]
[1737607012947,3.11533,3210.0,3209.4,3.87111]
[1737607013123,3.11542,3209.9,3209.4,0.7553]
[1737607013939,6.23043,3210.1,3209.4,3.87113]
[1737607014138,6.23043,3210.1,3209.5,0.698704]
[1737607014621,3.11519,3210.1,3209.5,3.814404]
[1737607014820,3.11501,3210.3,3209.6,0.7553]
[1737607015055,3.91618,3210.5,3209.7,3.11548]
[1737607015056,3.11496,3210.4,3209.7,3.11548]
[1737607015230,3.11517,3210.1,3209.6,0.7553]
[1737607015437,3.11517,3210.1,3209.6,1.2122724]
[1737607015620,3.11517,3210.1,3209.5,0.698704]
[1737607016672,3.11539,3209.9,3209.5,0.698704]
[1737607017138,3.11517,3210.1,3209.5,0.698704]
[1737607017338,3.11529,3210.0,3209.5,0.698704]
[1737607019549,3.11517,3210.1,3209.5,0.698704]
[1737607019871,3.11528,3210.0,3209.6,0.3814474]
[1737607020242,3.11513,3210.2,3209.7,3.87084]
[1737607020578,3.11513,3210.2,3209.6,0.3814474]
[1737607020579,3.11469,3210.6,3210.0,3.1152]
[1737607020765,3.11478,3210.5,3210.0,3.1152]
[1737607020940,3.11478,3210.5,3210.0,3.813789]
[1737607021570,3.11512,3210.2,3209.8,0.7553]
[1737607023158,3.11492,3210.4,3209.8,0.7553]
[1737607023360,3.1147,3210.6,3209.9,3.11529]
[1737607023559,3.1147,3210.6,3210.0,3.11518]
[1737607023759,3.1147,3210.6,3210.0,3.813764]
[1737607023980,0.8014,3211.5,3210.5,0.7553]
[1737607024139,0.8014,3211.5,3210.6,3.11466]
[1737607024140,3.11414,3211.2,3210.6,3.11466]
[1737607024339,3.11414,3211.2,3210.6,3.10443323]
[1737607024776,3.11406,3211.3,3210.6,3.10443323]
[1737607025085,3.11393,3211.4,3210.6,3.10443323]
[1737607025086,3.11413,3211.2,3210.6,3.10443323]
[1737607025246,3.11413,3211.2,3210.5,0.7553]
[1737607025446,1.40882931,3211.5,3210.5,0.7553]
[1737607025677,3.11436,3211.0,3210.5,0.7553]
[1737607025983,2.99936,3211.0,3210.5,1.14232]
[1737607026361,3.11413,3211.2,3210.5,1.14232]
[1737607026555,3.1142,3211.1,3210.5,3.87007]
[1737607027077,3.11413,3211.2,3210.5,0.7553]
[1737607027289,3.1144,3210.9,3210.5,0.7553]
[1737607027881,3.1144,3210.9,3210.0,3.813814]
[1737607028046,3.11488,3210.4,3210.1,0.7669]
[1737607028254,3.11498,3210.3,3210.1,0.7669]
[1737607028454,3.11478,3210.5,3210.1,0.7669]
[1737607028784,3.11489,3210.4,3210.1,0.7669]
[1737607029384,3.11498,3210.3,3209.7,3.88244]
[1737607029907,3.11498,3210.3,3209.7,4.300484]
[1737607030755,3.11543,3209.9,3209.4,1.0649]
[1737607031179,3.11546,3209.8,3209.4,1.0649]
[1737607032117,3.11534,3210.0,3209.4,1.0649]
[1737607032314,3.11521,3210.1,3209.4,1.0649]
[1737607032515,3.11539,3209.9,3209.4,1.682982]
[1737607032661,3.11521,3210.1,3209.4,1.682982]
[1737607032861,3.11521,3210.1,3209.4,4.798782]
[1737607033061,3.11509,3210.2,3209.5,3.14683562]
[1737607033486,3.11509,3210.2,3209.5,3.11568]
[1737607033998,3.11518,3210.1,3209.5,3.9071382]
[1737607034194,3.115,3210.3,3209.5,3.9071382]
[1737607034398,3.11507,3210.2,3209.6,3.11563]
[1737607034776,3.11518,3210.1,3209.5,3.93833234]
[1737607034978,3.11518,3210.1,3209.5,0.7914582]
[1737607035199,3.11518,3210.1,3209.4,1.0649]
[1737607035380,3.11518,3210.1,3209.4,4.18072]
[1737607035698,3.11505,3210.3,3209.5,3.11568]
[1737607035896,3.11491,3210.4,3209.7,0.7669]
[1737607036061,3.11481,3210.5,3209.8,3.11537]
[1737607036264,3.11481,3210.5,3209.9,0.7669]
[1737607036559,3.11488,3210.4,3209.9,0.7669]
[1737607038117,3.11499,3210.3,3209.9,0.7669]
[1737607038323,3.11488,3210.4,3209.9,0.7669]
[1737607038324,3.11507,3210.2,3209.9,0.7669]
[1737607038613,3.11519,3210.1,3209.7,0.7669]
[1737607039100,3.11546,3209.8,3209.3,0.7669]
[1737607039398,3.11532,3210.0,3209.3,0.7669]
[1737607040388,3.11537,3209.9,3209.3,0.7669]
[1737607040594,3.11537,3209.9,3209.3,4.471105]
[1737607043027,3.11537,3209.9,3209.3,1.355185]
[1737607043203,3.11537,3209.9,3209.3,0.7669]
[1737607043774,0.7521,3209.9,3208.8,0.753]
[1737607043985,3.11605,3209.2,3208.8,0.753]
[1737607044193,3.11614,3209.1,3208.8,0.753]
[1737607044714,3.11588,3209.4,3208.8,0.753]
[1737607044921,3.48884823,3209.4,3208.8,0.753]
[1737607045739,3.48885823,3209.4,3208.8,0.753]
[1737607045886,3.11605,3209.2,3208.8,0.753]
[1737607047099,3.11613,3209.1,3208.8,0.753]
[1737607047546,3.11626,3209.0,3208.8,0.753]
[1737607049101,3.11626,3209.0,3208.5,0.753]
[1737607049302,3.11652,3208.7,3208.5,0.753]
[1737607049627,3.11678,3208.5,3208.1,0.753]
[1737607050099,3.11692,3208.3,3208.1,0.753]
[1737607050295,3.11703,3208.2,3207.8,0.753]
[1737607050514,3.11692,3208.3,3207.8,0.753]
[1737607051098,3.740285,3208.3,3207.8,0.753]
[1737607051328,3.11711,3208.1,3207.6,0.753]
[1737607051630,3.11734,3207.9,3207.4,0.298]
[1737607051793,3.11734,3207.9,3207.0,4.01290693]
[1737607051794,2.96052738,3207.9,3207.0,4.01290693]
[1737607051993,3.11799,3207.2,3207.0,3.25990693]
[1737607052208,3.11808,3207.1,3207.0,3.25990693]
[1737607052617,3.87018,3207.1,3207.0,3.25990693]
[1737607052828,3.11847,3206.7,3206.1,3.25990693]
[1737607053138,3.11867,3206.5,3206.1,3.25990693]
[1737607053299,3.11878,3206.4,3206.1,3.25990693]
[1737607053827,3.11849,3206.7,3206.1,3.25990693]
[1737607054042,3.11874,3206.5,3206.1,3.25990693]
[1737607054613,3.11849,3206.7,3206.1,3.25990693]
[1737607054812,3.11828,3206.9,3206.2,3.87133]
[1737607055209,4.4897979,3207.1,3206.2,0.7524]
[1737607055210,1.3717179,3207.1,3206.2,0.7524]
[1737607055415,2.96052738,3207.0,3206.1,3.25990693]
[1737607055616,3.11861,3206.6,3206.1,3.25990693]
[1737607056631,3.11839,3206.8,3206.1,3.11904]
[1737607057450,3.11848,3206.7,3206.1,3.11904]
[1737607058120,3.11848,3206.7,3205.3,0.298]
[1737607058121,0.8224,3205.3,3204.3,1.07668054]
[1737607058315,3.12033,3204.8,3204.3,1.07668054]
[1737607058547,3.11993,3205.2,3204.3,0.7524]
[1737607058846,3.12024,3204.9,3204.3,0.7524]
[1737607059027,3.12039,3204.8,3204.3,0.7524]
[1737607059229,3.1207,3204.4,3203.8,0.7524]
[1737607060548,3.1209,3204.2,3203.8,0.7524]
[1737607061523,3.1207,3204.4,3203.8,0.7524]
[1737607063850,3.12098,3204.2,3203.8,0.7524]
[1737607064443,3.12098,3204.2,3203.9,35.0]
[1737607066050,3.1207,3204.4,3203.9,35.0]
[1737607066255,3.12098,3204.2,3203.9,35.0]
[1737607067053,3.12098,3204.2,3203.8,0.7524]
[1737607068121,3.12027,3204.9,3203.9,35.03121153]
[1737607068321,3.73481903,3205.0,3204.1,3.12099]
[1737607068543,3.12042,3204.7,3203.8,1.139788]
[1737607068746,3.12042,3204.7,3204.0,3.12107]
[1737607068952,3.12042,3204.7,3204.2,35.0]
[1737607071579,3.12023,3204.9,3204.1,3.12098]
[1737607071784,3.12003,3205.1,3204.5,3.1206]
[1737607072082,3.12003,3205.1,3204.5,38.1206]
[1737607072883,3.12003,3205.1,3204.3,3.12073]
[1737607073070,0.60866091,3205.3,3204.4,0.392713]
[1737607073266,3.12062,3204.5,3204.2,0.8064]
[1737607073668,3.12048,3204.7,3204.2,0.8064]
[1737607073874,3.1208,3204.4,3204.2,0.8064]
[1737607074382,6.2411,3204.6,3204.2,0.8064]
[1737607074579,3.12053,3204.6,3204.2,0.8064]
[1737607075855,0.63281263,3204.7,3204.2,0.8064]
[1737607076180,3.1209,3204.3,3203.8,0.8064]
[1737607076377,3.12092,3204.2,3203.8,0.8064]
[1737607076603,3.1209,3204.3,3203.8,0.8064]
[1737607076755,3.1209,3204.2,3203.8,0.8064]
[1737607078052,3.12071,3204.4,3203.8,0.8064]
[1737607078462,3.12071,3204.4,3203.8,3.92765]
[1737607080956,3.12071,3204.4,3203.8,0.8064]
[1737607081158,3.12037,3204.8,3204.1,3.12099]
[1737607081360,3.12024,3204.9,3204.3,3.92718]
[1737607081987,3.12012,3205.1,3204.3,0.8064]
[1737607082190,3.12033,3204.8,3204.3,0.8064]
[1737607082585,3.12023,3204.9,3204.3,4.631957]
[1737607082772,3.12012,3205.0,3204.3,4.631957]
[1737607082971,0.8253,3205.2,3204.3,4.631957]
[1737607082972,3.11993,3205.2,3204.3,1.511227]
[1737607083184,3.11983,3205.3,3204.7,3.12034]
[1737607083494,3.11984,3205.3,3204.8,3.46352438]
[1737607083699,3.12006,3205.1,3204.6,0.8064]
[1737607084005,3.12023,3204.9,3204.7,35.0]
[1737607084161,3.12033,3204.8,3204.6,0.8064]
[1737607084359,3.12047,3204.7,3204.3,1.511227]
[1737607084579,3.12047,3204.7,3204.3,36.511227]
[1737607084786,3.12038,3204.8,3204.3,36.511227]
[1737607085191,3.12038,3204.8,3204.3,1.511227]
[1737607086183,3.12027,3204.9,3204.3,1.511227]
[1737607086364,3.12027,3204.9,3204.4,0.46633224]
[1737607087271,3.12,3205.2,3204.4,0.46633224]
[1737607087502,3.11986,3205.3,3204.5,3.12054]
[1737607087702,3.11986,3205.3,3204.8,0.7591]
[1737607089360,3.12009,3205.1,3204.8,0.7591]
[1737607089582,3.12022,3204.9,3204.8,0.7591]
[1737607090119,0.62213929,3205.4,3204.8,0.7591]
[1737607090120,3.11985,3205.3,3204.8,0.7591]
[1737607091899,3.12009,3205.1,3204.8,0.7591]
[1737607092279,3.12022,3204.9,3204.8,0.7591]
[1737607092592,3.12039,3204.8,3204.2,0.7862]
[1737607092800,3.12022,3204.9,3204.2,0.7862]
[1737607093000,3.12068,3204.5,3204.2,0.7862]
[1737607094682,3.12044,3204.7,3204.2,0.7862]
[1737607095089,3.12052,3204.6,3204.2,0.7862]
[1737607097270,3.12052,3204.6,3204.3,35.0]
[1737607097471,3.12062,3204.5,3204.3,35.0]
[1737607097672,3.12035,3204.8,3204.3,35.0]
[1737607097889,3.12097,3204.2,3203.7,0.7862]
[1737607098527,3.12097,3204.2,3203.7,35.7862]
[1737607099027,3.121,3204.1,3203.7,35.7862]
[1737607099226,3.12112,3204.0,3203.7,35.7862]
[1737607099431,3.12101,3204.1,3203.7,35.7862]
[1737607101242,3.12082,3204.3,3203.7,35.7862]
[1737607101385,3.1211,3204.0,3203.7,35.7862]
[1737607102217,3.12175,3203.4,3202.7,3.87381]
[1737607102617,3.12179,3203.3,3202.8,35.0]
[1737607103402,3.12179,3203.3,3202.7,0.7515]
[1737607103625,0.8181,3203.2,3202.6,3.25990693]
[1737607103836,3.12215,3203.0,3202.6,3.25990693]
[1737607103985,0.8181,3203.2,3202.7,35.0]
[1737607104453,3.7515048,3203.4,3202.7,35.12255036]
[1737607104591,0.6298048,3203.4,3202.7,38.24490036]
[1737607104793,0.6298048,3203.4,3202.8,0.75772253]
[1737607105426,3.7515148,3203.4,3202.9,35.0]
[1737607105833,0.6298048,3203.4,3202.9,35.0]
[1737607106018,0.6298048,3203.4,3203.0,0.75772253]
[1737607106668,3.12197,3203.1,3203.0,0.75772253]
[1737607106880,3.93988,3203.3,3203.0,0.75772253]
[1737607107047,3.12197,3203.1,3203.0,0.75772253]
[1737607107221,3.94007,3203.1,3203.0,2.53e-06]
[1737607107425,3.94098,3202.2,3201.9,3.25990693]
[1737607107872,3.94098,3202.2,3201.9,38.25990693]
[1737607108224,0.8181,3202.2,3201.9,3.25990693]
[1737607108834,3.12304,3202.0,3201.9,3.25990693]
[1737607109074,5.19754,3202.0,3201.9,3.25990693]
[1737607109369,5.19754,3202.0,3199.5,0.67]
[1737607109370,3.94144,3201.7,3201.6,2.3e-06]
[1737607109571,0.8181,3200.8,3200.0,5.83706317]
[1737607109716,3.12435,3200.7,3200.0,5.83706317]
[1737607109921,3.12445,3200.6,3200.0,5.83706317]
[1737607110118,3.12423,3200.8,3200.0,6.58856317]
[1737607110321,3.94213,3201.0,3200.0,5.83706317]
[1737607110567,3.12421,3200.9,3200.0,5.83706317]
[1737607110736,3.12421,3200.9,3200.0,8.96205317]
[1737607110938,0.8181,3201.4,3200.1,2.78274742]
[1737607111122,0.8181,3201.4,3200.3,0.03124742]
[1737607111468,0.62330994,3201.4,3200.3,0.03124742]
[1737607111674,3.1239,3201.2,3200.3,3.12468]
[1737607111874,0.76889699,3201.2,3200.2,0.41666667]
[1737607112021,3.12425,3200.8,3200.2,0.41666667]
[1737607112673,0.76889699,3201.2,3200.2,0.41666667]
[1737607112913,3.94184,3201.3,3200.4,3.12455]
[1737607113080,0.8181,3201.3,3200.4,0.7515]
[1737607113285,0.8181,3201.3,3200.4,3.8761]
[1737607113481,0.60963347,3201.5,3200.7,3.12431]
[1737607113769,3.73316347,3201.5,3200.7,3.12431]
[1737607113977,4.50063382,3201.5,3200.7,3.12431]
[1737607114202,1.37710382,3201.5,3200.7,3.12431]
[1737607114384,4.50063382,3201.5,3200.7,3.12431]
[1737607114522,1.37710382,3201.5,3200.4,0.7515]
[1737607114727,0.60963347,3201.5,3200.9,3.12402]
[1737607114931,4.14905358,3201.3,3200.2,0.41666667]
[1737607115242,0.8181,3200.4,3200.2,0.41666667]
[1737607115627,3.1247,3200.3,3200.2,0.41666667]
[1737607115827,0.706738,3200.3,3200.2,0.41666667]
[1737607116044,3.94275,3200.4,3200.2,0.41666667]
[1737607116373,3.1247,3200.3,3200.2,0.41666667]
[1737607117366,3.8909,3200.3,3200.2,0.41666667]
[1737607117722,6.8909,3200.3,3200.2,0.41666667]
[1737607118000,6.8909,3200.3,3199.9,0.2239324]
[1737607118001,3.8564,3200.2,3199.5,0.42]
[1737607118129,3.8564,3200.2,3198.0,3.12689]
[1737607118130,3.59905358,3198.6,3196.2,0.25]
[1737607118397,0.01873781,3195.2,3195.1,1.02e-06]
[1737607118681,0.4999977,3193.9,3193.8,8.3e-07]
[1737607118992,0.4999977,3193.9,3188.8,4.56386972]
[1737607118993,0.01873781,3189.4,3188.8,4.56386972]
[1737607119215,0.01873781,3189.4,3188.3,0.0142623]
[1737607119216,3.13636,3188.4,3188.3,0.0142623]
[1737607119328,3.13794,3186.8,3186.7,4.81932421]
[1737607119530,3.13774,3187.0,3186.7,4.81932421]